bitfinex/quotes_BTCUSD_20240715
["timestamp","ask_amount","ask_price","bid_price","bid_amount"]
[1721027963371,40.04978802,62988.0,62987.0,16.94501278]
[1721027964793,39.90678128,62988.0,62987.0,17.11221278]
[1721027965020,39.90678128,62988.0,62987.0,17.11348359]
[1721027965499,39.90678128,62988.0,62987.0,17.11253783]
[1721027967860,39.88295918,62988.0,62987.0,17.11253783]
[1721027968091,39.88295918,62988.0,62987.0,16.6862107]
[1721027968306,39.88295918,62988.0,62987.0,17.11261489]
[1721027971194,40.02235918,62988.0,62987.0,17.11261489]
[1721027971402,40.02235918,62988.0,62987.0,17.11262661]
[1721027971610,40.02235918,62988.0,62987.0,16.94542661]
[1721027971829,40.02235918,62988.0,62987.0,12.43104856]
[1721027972042,40.02235918,62988.0,62987.0,11.31692573]
[1721027972245,40.02235918,62988.0,62987.0,11.81985411]
[1721027972660,40.02235918,62988.0,62987.0,11.11985411]
[1721027972884,40.02235918,62988.0,62987.0,11.73390511]
[1721027973086,40.02235918,62988.0,62987.0,11.63281511]
[1721027973237,40.02235918,62988.0,62987.0,11.75581511]
[1721027973850,40.02235918,62988.0,62987.0,11.68671211]
[1721027974494,40.02235918,62988.0,62987.0,11.49385933]
[1721027974707,40.02235918,62988.0,62987.0,12.38691139]
[1721027974916,40.02235918,62988.0,62987.0,11.26453895]
[1721027975266,40.02235918,62988.0,62987.0,12.38876698]
[1721027975748,40.02235918,62988.0,62987.0,11.68876698]
[1721027975967,40.02235918,62988.0,62987.0,12.38876698]
[1721027976601,40.02235918,62988.0,62987.0,11.68876698]
[1721027976802,40.02235918,62988.0,62987.0,12.38876698]
[1721027977224,40.02235918,62988.0,62987.0,11.68876698]
[1721027977405,40.02235918,62988.0,62987.0,12.38876698]
[1721027977855,40.02235918,62988.0,62987.0,12.3883716]
[1721027979888,40.02235918,62988.0,62987.0,10.98384573]
[1721027980291,40.02235918,62988.0,62987.0,10.96984573]
[1721027980452,40.02235918,62988.0,62987.0,10.98384573]
[1721027980965,40.02235918,62988.0,62987.0,10.96984573]
[1721027981173,40.02235918,62988.0,62987.0,10.90773858]
[1721027981378,40.02235918,62988.0,62987.0,10.97050823]
[1721027981550,40.02235918,62988.0,62987.0,10.98450823]
[1721027984268,40.02235918,62988.0,62987.0,9.99316122]
[1721027984482,40.02235918,62988.0,62987.0,10.73972037]
[1721027984685,40.02235918,62988.0,62987.0,6.77872844]
[1721027984908,40.02235918,62988.0,62987.0,6.14893027]
[1721027985114,40.02235918,62988.0,62987.0,6.04380127]
[1721027985526,40.02235918,62988.0,62987.0,6.18820127]
[1721027985945,40.02235918,62988.0,62987.0,6.17420127]
[1721027986160,40.02235918,62988.0,62987.0,6.26020127]
[1721027986565,40.02235918,62988.0,62987.0,5.4739704]
[1721027986787,40.02235918,62988.0,62987.0,6.27417722]
[1721027986992,40.02235918,62988.0,62987.0,6.28817722]
[1721027987633,40.02235918,62988.0,62987.0,6.13910012]
[1721027987792,40.02235918,62988.0,62987.0,6.288286]
[1721027988214,40.02235918,62988.0,62987.0,6.44859454]
[1721027988823,40.02235918,62988.0,62987.0,8.66156003]
[1721027989263,40.02235918,62988.0,62987.0,8.79472575]
[1721027989474,40.02235918,62988.0,62987.0,8.88762575]
[1721027990786,40.02235918,62988.0,62987.0,8.60527415]
[1721027990995,40.02235918,62988.0,62987.0,8.88972245]
[1721027991204,39.96155918,62988.0,62987.0,9.83670065]
[1721027991408,39.88295918,62988.0,62987.0,9.83670065]
[1721027993537,39.88295918,62988.0,62987.0,9.83675855]
[1721027994107,39.88295918,62988.0,62987.0,9.78775899]
[1721027994308,39.88295918,62988.0,62987.0,9.83672401]
[1721027994541,39.88295918,62988.0,62987.0,8.70781888]
[1721027994740,39.88295918,62988.0,62987.0,9.83618339]
[1721027997309,39.88295918,62988.0,62987.0,9.7872194]
[1721027997517,39.88295918,62988.0,62987.0,9.83619546]
[1721028000610,39.88295918,62988.0,62987.0,9.60105822]
[1721028000784,39.88295918,62988.0,62987.0,9.8361425]
[1721028001242,39.85854082,62988.0,62987.0,9.8361425]
[1721028001448,39.85854082,62988.0,62987.0,9.74286847]
[1721028002035,40.00214082,62988.0,62987.0,9.74286847]
[1721028002278,40.00214082,62988.0,62987.0,9.99987604]
[1721028003107,40.00214082,62988.0,62987.0,8.87155242]
[1721028003313,40.00214082,62988.0,62987.0,8.12638173]
[1721028003525,40.00214082,62988.0,62987.0,6.84453191]
[1721028003736,40.00214082,62988.0,62987.0,7.97237657]
[1721028003940,40.00214082,62988.0,62987.0,7.27237657]
[1721028004354,40.00214082,62988.0,62987.0,7.36808444]
[1721028004992,40.00214082,62988.0,62987.0,7.39108444]
[1721028005205,40.00214082,62988.0,62987.0,9.26208544]
[1721028005411,40.00214082,62988.0,62987.0,8.91744444]
[1721028005624,40.00214082,62988.0,62987.0,8.75580344]
[1721028005832,40.00214082,62988.0,62987.0,8.71977544]
[1721028006034,40.00214082,62988.0,62987.0,8.71973513]
[1721028006239,40.00214082,62988.0,62987.0,8.67404913]
[1721028006418,40.00214082,62988.0,62987.0,8.67329883]
[1721028007562,40.00214082,62988.0,62987.0,10.17329883]
[1721028007763,40.00214082,62988.0,62987.0,10.42031177]
[1721028008307,40.00194974,62988.0,62987.0,10.42031177]
[1721028009584,40.00194974,62988.0,62987.0,9.57548832]
[1721028009783,40.00194974,62988.0,62987.0,10.17287451]
[1721028009957,40.00194974,62988.0,62987.0,10.41988745]
[1721028011360,40.00194974,62988.0,62987.0,10.25580645]
[1721028011780,40.00194974,62988.0,62987.0,9.88360245]
[1721028012034,40.00194974,62988.0,62987.0,9.63658951]
[1721028012683,40.00194974,62988.0,62987.0,9.40321708]
[1721028012894,40.00194974,62988.0,62987.0,9.63542625]
[1721028013340,40.00194974,62988.0,62987.0,9.63542912]
[1721028014672,40.00194974,62988.0,62987.0,10.13944963]
[1721028015119,40.00194974,62988.0,62987.0,9.88244206]
[1721028015325,40.00194974,62988.0,62987.0,9.63542912]
[1721028015497,40.00194974,62988.0,62987.0,9.94766792]
[1721028015906,40.00194974,62988.0,62987.0,9.05551021]
[1721028016116,40.00194974,62988.0,62987.0,11.16295027]
[1721028016339,40.00194974,62988.0,62987.0,11.40996321]
[1721028018137,40.00194974,62988.0,62987.0,11.66697078]
[1721028018427,40.00194974,62988.0,62987.0,11.37451378]
[1721028018633,40.00194974,62988.0,62987.0,10.95364678]
[1721028018802,40.00194974,62988.0,62987.0,10.88536478]
[1721028019142,40.00194974,62988.0,62987.0,10.51506934]
[1721028019343,40.00194974,62988.0,62987.0,10.88616392]
[1721028019686,40.00194974,62988.0,62987.0,10.62915635]
[1721028022021,40.00194974,62988.0,62987.0,9.92915635]
[1721028022229,40.00194974,62988.0,62987.0,10.62915635]
[1721028022563,40.00194974,62988.0,62987.0,10.63184151]
[1721028023437,40.00194974,62988.0,62987.0,10.6318907]
[1721028023907,40.00194974,62988.0,62987.0,10.88889827]
[1721028024329,40.00194974,62988.0,62987.0,10.6318907]
[1721028025755,40.00194974,62988.0,62987.0,9.43874891]
[1721028025928,40.00194974,62988.0,62987.0,10.63063301]
[1721028026367,40.00194974,62988.0,62987.0,10.63064893]
[1721028029033,40.00194974,62988.0,62987.0,10.63057616]
[1721028029857,40.00194974,62988.0,62987.0,11.33057616]
[1721028030061,40.00194974,62988.0,62987.0,10.63057616]
[1721028030490,40.00194974,62988.0,62987.0,10.33197478]
[1721028030695,40.00194974,62988.0,62987.0,10.63042585]
[1721028031545,40.00194974,62988.0,62987.0,10.63765363]
[1721028032246,40.00194974,62988.0,62987.0,10.404567]
[1721028032451,40.00194974,62988.0,62987.0,10.63741775]
[1721028033079,40.00194974,62988.0,62987.0,9.06457075]
[1721028033283,40.00194974,62988.0,62987.0,13.25569575]
[1721028033486,40.00194974,62988.0,62987.0,13.96022162]
[1721028033688,40.00194974,62988.0,62987.0,13.94939462]
[1721028033892,40.00194974,62988.0,62987.0,13.81928062]
[1721028034933,40.00194974,62988.0,62987.0,13.11928062]
[1721028035493,40.00194974,62988.0,62987.0,13.12034472]
[1721028037088,40.00194974,62988.0,62987.0,13.82034472]
[1721028038704,40.00194974,62988.0,62987.0,13.12034472]
[1721028038914,40.00194974,62988.0,62987.0,13.12048339]
[1721028039248,40.00194974,62988.0,62987.0,13.12050285]
[1721028041827,40.00194974,62988.0,62987.0,13.12051155]
[1721028042028,40.00194974,62988.0,62987.0,13.12056663]
[1721028045418,40.00194974,62988.0,62987.0,9.77033556]
[1721028045642,40.00194974,62988.0,62987.0,14.30468256]
[1721028045845,40.00194974,62988.0,62987.0,14.29201256]
[1721028046288,40.00194974,62988.0,62987.0,15.18604539]
[1721028046880,40.00194974,62988.0,62987.0,15.18621208]
[1721028047270,40.00194974,62988.0,62987.0,13.35051794]
[1721028047471,40.00194974,62988.0,62987.0,0.142886]
[1721028047472,39.95124974,62988.0,62987.0,0.142886]
[1721028047675,39.95124974,62988.0,62985.0,0.14295225]
[1721028047875,0.17395238,62986.0,62985.0,0.39931592]
[1721028048090,0.33607029,62986.0,62985.0,1.0278304]
[1721028048293,0.39607029,62986.0,62985.0,1.0914294]
[1721028048485,0.65607029,62986.0,62975.0,0.0476608]
[1721028048695,0.12,62969.0,62968.0,0.5]
[1721028048904,0.45607029,62969.0,62968.0,0.3278304]
[1721028049322,0.75607029,62969.0,62968.0,0.3278304]
[1721028049530,0.55607029,62969.0,62968.0,0.3914514]
[1721028049798,0.12,62962.0,62942.0,0.04755156]
[1721028049996,0.12,62962.0,62949.0,0.6137724]
[1721028049997,0.16211791,62961.0,62949.0,0.6137724]
[1721028050235,0.0929,62950.0,62949.0,1.3997174]
[1721028050440,0.2256,62950.0,62949.0,1.1906444]
[1721028050661,0.2256,62950.0,62949.0,0.8278304]
[1721028050861,0.2256,62950.0,62949.0,0.8914624]
[1721028051099,0.2256,62950.0,62949.0,0.3914624]
[1721028051525,0.2256,62950.0,62949.0,0.8914624]
[1721028052139,0.2256,62950.0,62949.0,0.9024624]
[1721028052470,0.2266,62950.0,62949.0,0.9034624]
[1721028052700,0.2266,62950.0,62949.0,0.8914624]
[1721028052872,0.2276,62950.0,62949.0,0.9024624]
[1721028053079,0.2286,62950.0,62949.0,0.9144624]
[1721028053297,0.2276,62950.0,62949.0,0.9034624]
[1721028053701,0.2286,62950.0,62949.0,0.9144624]
[1721028053903,0.003,62950.0,62949.0,1.0574344]
[1721028054110,0.003,62950.0,62949.0,1.6302374]
[1721028054889,0.2256,62951.0,62950.0,0.428911]
[1721028055076,0.2256,62958.0,62957.0,0.5]
[1721028055280,0.2256,62958.0,62957.0,0.8278304]
[1721028056334,0.2266,62958.0,62957.0,0.8278304]
[1721028057885,0.2266,62958.0,62957.0,0.3278304]
[1721028058091,0.2266,62958.0,62957.0,0.8278304]
[1721028058298,0.3466,62958.0,62957.0,0.3418304]
[1721028058504,0.2266,62958.0,62957.0,0.3418304]
[1721028058885,0.2256,62958.0,62957.0,0.3418304]
[1721028059114,0.2256,62958.0,62957.0,0.014]
[1721028059329,0.2256,62958.0,62957.0,0.028]
[1721028060161,0.22778992,62958.0,62957.0,0.028]
[1721028060575,0.2256,62958.0,62957.0,0.028]
[1721028060792,0.22778992,62958.0,62957.0,0.528]
[1721028061004,0.22778992,62958.0,62957.0,0.028]
[1721028061209,0.2256,62958.0,62957.0,0.514]
[1721028062067,0.08105238,62969.0,62968.0,0.5]
[1721028062279,0.2256,62974.0,62968.0,0.9707584]
[1721028062485,0.2256,62974.0,62968.0,0.33570165]
[1721028062486,0.08105238,62969.0,62968.0,0.33570165]
[1721028063729,0.20105238,62969.0,62968.0,0.34970165]
[1721028064137,0.08105238,62969.0,62968.0,0.83570165]
[1721028064954,0.08105238,62969.0,62968.0,0.84970165]
[1721028065158,0.08105238,62969.0,62968.0,0.34970165]
[1721028065159,0.24317029,62969.0,62968.0,0.34970165]
[1721028065368,0.56317029,62969.0,62968.0,0.34970165]
[1721028065573,0.62317029,62969.0,62968.0,0.34970165]
[1721028065811,0.36317029,62969.0,62968.0,0.34970165]
[1721028066018,0.56317029,62969.0,62968.0,0.34970165]
[1721028066219,0.62317029,62969.0,62968.0,0.36370165]
[1721028066421,0.56317029,62969.0,62968.0,0.36370165]
[1721028066827,0.06,62960.0,62959.0,0.00087361]
[1721028067034,0.70771791,62960.0,62959.0,0.00087361]
[1721028067245,0.50771791,62960.0,62959.0,0.32870401]
[1721028067447,0.50771791,62960.0,62959.0,0.3278304]
[1721028067448,0.70771791,62960.0,62959.0,0.3278304]
[1721028068163,0.96771791,62960.0,62959.0,0.3278304]
[1721028068383,0.96771791,62960.0,62949.0,0.000913]
[1721028068384,0.32,62950.0,62949.0,0.000913]
[1721028068621,0.94877029,62950.0,62949.0,0.3287434]
[1721028069029,0.88877029,62950.0,62949.0,0.3287434]
[1721028069228,0.68877029,62950.0,62949.0,0.3287434]
[1721028069696,0.88977029,62950.0,62949.0,0.3387434]
[1721028069947,0.94877029,62950.0,62949.0,0.3287434]
[1721028070306,0.88977029,62950.0,62949.0,0.3387434]
[1721028070477,0.68977029,62950.0,62949.0,0.3387434]
[1721028070680,0.68977029,62950.0,62949.0,0.3287434]
[1721028071659,0.69077029,62950.0,62949.0,0.3397434]
[1721028072209,0.69077029,62950.0,62949.0,0.3387434]
[1721028072538,0.69177029,62950.0,62949.0,0.3387434]
[1721028072969,0.24617029,62950.0,62949.0,0.3387434]
[1721028073643,0.24617029,62950.0,62949.0,0.010913]
[1721028074368,0.36617029,62950.0,62949.0,0.010913]
[1721028075412,0.56617029,62950.0,62949.0,0.010913]
[1721028075638,0.36617029,62950.0,62949.0,0.010913]
[1721028080000,0.003,62950.0,62949.0,0.43983]
[1721028080197,0.003,62950.0,62949.0,0.72664861]
[1721028080401,0.003,62950.0,62949.0,0.73406588]
[1721028080607,0.003,62950.0,62949.0,1.02001088]
[1721028081040,0.04902123,62962.0,62961.0,0.5]
[1721028081256,0.04902123,62962.0,62956.0,0.928869]
[1721028081257,0.08105238,62957.0,62956.0,0.928869]
[1721028081459,0.08105238,62957.0,62956.0,0.4707864]
[1721028081663,0.08105238,62957.0,62956.0,0.9707864]
[1721028082072,0.08105238,62957.0,62956.0,0.4707864]
[1721028082277,0.08105238,62957.0,62956.0,0.7566994]
[1721028082487,0.08105238,62957.0,62956.0,1.25757301]
[1721028082954,0.08105238,62957.0,62956.0,0.7566994]
[1721028083171,0.08105238,62957.0,62956.0,0.7706994]
[1721028084235,0.08105238,62957.0,62956.0,0.7846994]
[1721028084642,0.08105238,62957.0,62956.0,1.2846994]
[1721028085091,0.36317029,62957.0,62956.0,0.3558304]
[1721028085978,0.24317029,62957.0,62956.0,0.3558304]
[1721028086187,0.24317029,62957.0,62956.0,0.35670401]
[1721028086393,0.36317029,62957.0,62956.0,0.35670401]
[1721028086596,0.36317029,62957.0,62956.0,0.028]
[1721028088494,0.24317029,62957.0,62956.0,0.03541789]
[1721028089143,0.16211791,62957.0,62956.0,0.46428689]
[1721028089349,0.16211791,62957.0,62956.0,0.03541789]
[1721028089350,0.28211791,62957.0,62956.0,0.03541789]
[1721028089929,0.28211791,62957.0,62956.0,0.0362915]
[1721028092422,0.28211791,62957.0,62956.0,0.0340915]
[1721028092759,0.28211791,62957.0,62956.0,0.03321789]
[1721028092962,0.48211791,62957.0,62956.0,0.03321789]
[1721028093370,0.48211791,62957.0,62956.0,0.0258]
[1721028093575,0.64211791,62957.0,62956.0,0.0258]
[1721028094014,0.76593578,62957.0,62956.0,0.0258]
[1721028094220,0.70593578,62957.0,62956.0,0.0258]
[1721028094425,0.70593578,62957.0,62956.0,0.03320252]
[1721028094599,0.76593578,62957.0,62956.0,0.0258]
[1721028094753,0.76593578,62957.0,62956.0,0.03320252]
[1721028094971,0.76593578,62957.0,62956.0,0.0258]
[1721028095433,0.76548547,62957.0,62956.0,0.0258]
[1721028096104,0.76548234,62957.0,62956.0,0.0258]
[1721028097188,0.70548234,62957.0,62956.0,0.0258]
[1721028097412,0.70548234,62957.0,62956.0,0.03320252]
[1721028097827,0.76548234,62957.0,62956.0,0.03320252]
[1721028098029,0.76548234,62957.0,62956.0,0.0258]
[1721028098691,0.58211791,62957.0,62956.0,0.0258]
[1721028098903,0.70556758,62957.0,62956.0,0.0258]
[1721028099328,0.76556758,62957.0,62956.0,0.03320252]
[1721028099533,0.86556758,62957.0,62956.0,0.03320252]
[1721028099768,0.86556758,62957.0,62956.0,0.0258]
[1721028100619,0.86556758,62957.0,62956.0,0.0118]
[1721028101027,0.86556758,62957.0,62956.0,0.0258]
[1721028101847,0.86556758,62957.0,62956.0,0.014]
[1721028102052,0.32,62950.0,62949.0,0.000913]
[1721028102254,0.48211791,62950.0,62949.0,0.3287434]
[1721028102466,0.28211791,62950.0,62949.0,0.3287434]
[1721028102665,0.28211791,62950.0,62949.0,0.33619226]
[1721028103739,0.48211791,62950.0,62949.0,0.33619226]
[1721028103967,0.48311791,62950.0,62949.0,0.35019226]
[1721028105055,0.48311791,62950.0,62949.0,0.36419226]
[1721028107307,0.48311791,62950.0,62949.0,0.03636186]
[1721028107511,0.54311791,62950.0,62949.0,0.03636186]
[1721028107723,0.54311791,62950.0,62949.0,0.028913]
[1721028108543,0.28311791,62950.0,62949.0,0.028913]
[1721028109110,0.28311791,62950.0,62949.0,0.03636186]
[1721028109989,0.16311791,62950.0,62949.0,0.03636186]
[1721028110189,0.16311791,62950.0,62949.0,0.18020747]
[1721028110646,0.16311791,62950.0,62949.0,0.03723547]
[1721028111802,0.28311791,62950.0,62949.0,0.03723547]
[1721028112486,0.48311791,62950.0,62949.0,0.03636186]
[1721028112694,0.28311791,62950.0,62949.0,0.03636186]
[1721028113115,0.28311791,62950.0,62949.0,0.10076186]
[1721028113270,0.28311791,62950.0,62949.0,0.24373386]
[1721028113476,0.16311791,62950.0,62949.0,0.24373386]
[1721028113864,0.001,62950.0,62949.0,0.81562386]
[1721028114068,0.001,62950.0,62949.0,0.89552386]
[1721028114281,0.001,62950.0,62949.0,1.18146886]
[1721028114532,0.001,62950.0,62949.0,1.25498265]
[1721028115025,0.001,62950.0,62949.0,1.18146886]
[1721028116948,0.001,62950.0,62949.0,1.25437041]
[1721028117144,0.001,62950.0,62949.0,1.38146886]
[1721028117350,0.001,62950.0,62949.0,1.61920047]
[1721028117546,0.001,62950.0,62949.0,2.00514547]
[1721028118203,0.00083,62956.0,62955.0,1.840913]
[1721028118543,0.00083,62956.0,62955.0,2.4141429]
[1721028119846,0.00083,62956.0,62955.0,2.41354085]
[1721028120254,0.00083,62956.0,62955.0,2.42754085]
[1721028120989,0.23163467,62969.0,62967.0,0.142931]
[1721028121191,0.16211791,62968.0,62967.0,0.4707614]
[1721028121351,0.16211791,62968.0,62967.0,0.82292054]
[1721028122148,0.16211791,62968.0,62967.0,0.4707614]
[1721028122341,0.16211791,62968.0,62967.0,0.82292054]
[1721028122770,0.16211791,62968.0,62967.0,0.83692054]
[1721028122991,0.16211791,62968.0,62967.0,0.85092054]
[1721028123563,0.16211791,62968.0,62967.0,0.52309014]
[1721028125349,0.16211791,62968.0,62967.0,0.80895414]
[1721028125566,0.16211791,62968.0,62967.0,0.80895279]
[1721028125776,0.00084,62969.0,62968.0,0.714647]
[1721028125994,0.00084,62969.0,62968.0,1.06680479]
[1721028127088,0.00084,62969.0,62968.0,1.08080479]
[1721028127291,0.00084,62969.0,62968.0,1.06680479]
[1721028127496,0.00084,62969.0,62968.0,1.20935856]
[1721028127690,0.00084,62969.0,62968.0,1.28345856]
[1721028127891,0.00084,62969.0,62968.0,1.36385856]
[1721028128644,0.00084,62969.0,62968.0,0.883147]
[1721028128846,0.00084,62969.0,62968.0,1.66362091]
[1721028129218,0.00084,62969.0,62968.0,1.63562091]
[1721028129408,0.00084,62969.0,62968.0,1.50712675]
[1721028129826,0.00084,62969.0,62968.0,1.49312675]
[1721028129973,0.00084,62969.0,62968.0,1.50712675]
[1721028130615,0.00084,62969.0,62968.0,1.52112675]
[1721028132093,0.00084,62969.0,62968.0,1.52112752]
[1721028132253,0.00084,62969.0,62968.0,1.23526852]
[1721028132456,0.00084,62969.0,62968.0,1.23527467]
[1721028132656,0.00084,62969.0,62968.0,1.73527467]
[1721028133269,0.00084,62969.0,62968.0,1.44941567]
[1721028133633,0.00084,62969.0,62968.0,1.57575495]
[1721028134245,0.00202992,62972.0,62970.0,0.142923]
[1721028134451,0.16211791,62971.0,62970.0,0.56567809]
[1721028134667,0.36211791,62971.0,62970.0,0.77489011]
[1721028134867,0.16211791,62971.0,62970.0,0.91781511]
[1721028135209,0.16211791,62971.0,62970.0,0.56567765]
[1721028135408,0.16211791,62971.0,62970.0,0.93182072]
[1721028135819,0.2,62973.0,62970.0,0.93182072]
[1721028136143,0.36211791,62973.0,62971.0,0.07118568]
[1721028136481,0.00202992,62972.0,62971.0,0.07118568]
[1721028136617,0.00202992,62972.0,62971.0,0.06118568]
[1721028137428,0.00202992,62972.0,62970.0,0.3418304]
[1721028137623,0.00202992,62972.0,62970.0,0.3278304]
[1721028137831,0.00202992,62972.0,62971.0,0.014]
[1721028138050,0.00202992,62972.0,62971.0,0.028]
[1721028138681,0.20202992,62972.0,62971.0,0.014]
[1721028138885,0.36211791,62973.0,62971.0,0.014]
[1721028139063,0.36211791,62973.0,62972.0,0.04744708]
[1721028140284,0.36211791,62973.0,62972.0,0.54744708]
[1721028140897,0.36211791,62973.0,62972.0,0.028]
[1721028140898,0.68211791,62973.0,62972.0,0.028]
[1721028141319,0.56211791,62973.0,62972.0,0.028]
[1721028141520,0.68211791,62973.0,62972.0,0.028]
[1721028141729,0.56211791,62973.0,62972.0,0.028]
[1721028142029,0.36211791,62973.0,62972.0,0.014]
[1721028142220,0.26414783,62973.0,62972.0,0.014]
[1721028142420,0.26414783,62973.0,62970.0,0.3278304]
[1721028142671,0.16211791,62972.0,62970.0,0.37528402]
[1721028142875,0.1,62975.0,62972.0,0.142919]
[1721028143079,0.1,62975.0,62973.0,0.19036939]
[1721028143080,0.16211791,62974.0,62973.0,0.19036939]
[1721028143284,0.16211791,62974.0,62973.0,0.222718]
[1721028143634,0.1,62975.0,62973.0,0.57484153]
[1721028143834,0.1,62981.0,62979.0,0.142904]
[1721028144037,0.1,62986.0,62979.0,0.8984434]
[1721028144242,0.1,62984.0,62983.0,0.142895]
[1721028144425,0.1,62984.0,62983.0,0.19033393]
[1721028145030,0.16211791,62985.0,62983.0,0.142895]
[1721028145279,0.1,62984.0,62983.0,0.49495875]
[1721028145519,0.16211791,62985.0,62983.0,0.49496008]
[1721028145660,0.16211791,62985.0,62983.0,0.142895]
[1721028145889,0.16211791,62985.0,62983.0,0.21404095]
[1721028146097,0.16211791,62985.0,62983.0,0.142895]
[1721028146293,0.16211791,62985.0,62984.0,0.19032392]
[1721028146493,0.16211791,62985.0,62984.0,0.142893]
[1721028146672,0.26211791,62985.0,62984.0,0.142893]
[1721028146871,0.16211791,62985.0,62984.0,0.142893]
[1721028147140,0.28105238,62994.0,62986.0,0.5]
[1721028147141,0.1,62992.0,62986.0,0.5]
[1721028147334,0.08105238,62994.0,62987.0,0.64320455]
[1721028147335,0.1,62991.0,62987.0,0.64320455]
[1721028147541,0.08105238,62994.0,62987.0,0.64320455]
[1721028147693,0.1,62991.0,62987.0,0.92410099]
[1721028148130,0.1,62991.0,62987.0,0.572059]
[1721028148332,0.1,62991.0,62987.0,1.01895961]
[1721028149511,0.1,62991.0,62987.0,0.92410128]
[1721028149727,0.1,62991.0,62987.0,1.01896105]
[1721028149922,0.1,62991.0,62987.0,1.04696105]
[1721028150122,0.1,62991.0,62987.0,0.95210128]
[1721028150358,0.08105238,62994.0,62987.0,1.23787428]
[1721028150766,0.1,62994.0,62987.0,1.23787428]
[1721028150971,0.0492282,62996.0,62987.0,1.64364728]
[1721028151389,0.0492282,62996.0,62987.0,1.77193477]
[1721028151579,0.0492282,62996.0,62987.0,1.62964728]
[1721028151789,0.0492282,62996.0,62987.0,1.52364728]
[1721028152063,0.0492282,62996.0,62987.0,1.65192715]
[1721028152485,0.0492282,62996.0,62987.0,1.52364728]
[1721028153023,0.0492282,62996.0,62987.0,1.50964728]
[1721028153431,0.0492282,62996.0,62987.0,1.62964728]
[1721028154052,0.0492282,62996.0,62987.0,1.52364728]
[1721028154737,0.0492282,62996.0,62987.0,1.157605]
[1721028154877,0.0492282,62996.0,62987.0,1.5236117]
[1721028155080,0.0492282,62996.0,62987.0,1.171605]
[1721028155292,0.0492282,62996.0,62987.0,1.52361058]
[1721028155473,0.0492282,62996.0,62987.0,1.64361058]
[1721028155846,0.0492282,62996.0,62987.0,1.62961058]
[1721028156258,0.0492282,62996.0,62987.0,1.64361058]
[1721028157446,0.0492282,62996.0,62987.0,1.61561058]
[1721028157646,0.0492282,62996.0,62987.0,1.62961058]
[1721028157828,0.0492282,62996.0,62987.0,1.277605]
[1721028158037,0.0492282,62996.0,62987.0,1.62960874]
[1721028158240,0.0492282,62996.0,62987.0,1.61560874]
[1721028158894,0.0492282,62996.0,62987.0,1.62960874]
[1721028159682,0.0492282,62996.0,62987.0,1.64360874]
[1721028161393,0.0492282,62996.0,62987.0,1.64360867]
[1721028162105,0.0492282,62996.0,62987.0,1.52360867]
[1721028162328,0.0492282,62996.0,62987.0,2.02360867]
[1721028163236,0.0492282,62996.0,62987.0,2.14360867]
[1721028163471,0.0492282,62996.0,62987.0,2.12960867]
[1721028163762,0.0492282,62996.0,62987.0,2.14360867]
[1721028164231,0.0492282,62996.0,62987.0,2.12960867]
[1721028164680,0.0492282,62996.0,62987.0,2.1436098]
[1721028165093,0.0492282,62996.0,62987.0,2.14360943]
[1721028165375,0.0492282,62996.0,62987.0,2.12960943]
[1721028165600,0.0492282,62996.0,62987.0,2.14360943]
[1721028165930,0.0492282,62996.0,62987.0,2.12960943]
[1721028166135,0.0492282,62996.0,62987.0,2.14360943]
[1721028170032,0.0492282,62996.0,62987.0,2.35365167]
[1721028171218,0.0492282,62996.0,62987.0,2.353623]
[1721028171420,0.0492282,62996.0,62987.0,2.14358331]
[1721028171828,0.0492282,62996.0,62987.0,2.20717531]
[1721028172030,0.0492282,62996.0,62987.0,1.841197]
[1721028172250,0.0492282,62996.0,62987.0,2.19318059]
[1721028172428,0.0492282,62996.0,62987.0,2.27835627]
[1721028172632,0.0492282,62996.0,62987.0,2.26435627]
[1721028172851,0.0492282,62996.0,62987.0,2.25035627]
[1721028173055,0.0492282,62996.0,62987.0,2.26435627]
[1721028173227,0.0492282,62996.0,62987.0,2.44312384]
[1721028173654,0.0492282,62996.0,62987.0,2.72889684]
[1721028173874,0.0492282,62996.0,62987.0,3.50677831]
[1721028174449,0.0492282,62996.0,62987.0,2.59084201]
[1721028174633,0.0492282,62996.0,62987.0,3.54470664]
[1721028174829,0.0492282,62996.0,62987.0,3.53070664]
[1721028175084,0.0492282,62996.0,62987.0,3.36595158]
[1721028175281,0.0492282,62996.0,62987.0,3.54469885]
[1721028175682,0.0492282,62996.0,62987.0,3.83047185]
[1721028175868,0.0492282,62996.0,62987.0,4.97919523]
[1721028176050,0.0492282,62996.0,62987.0,3.83047185]
[1721028176256,0.0492282,62996.0,62987.0,3.84447185]
[1721028177274,0.0492282,62996.0,62987.0,3.89192205]
[1721028177707,0.0492282,62996.0,62987.0,3.8923143]
[1721028178475,0.0492282,62996.0,62987.0,3.8783143]
[1721028178933,39.70844974,62988.0,62987.0,3.8923143]
[1721028180250,39.70844974,62988.0,62987.0,3.8783143]
[1721028180658,39.70844974,62988.0,62987.0,2.9761761]
[1721028180860,39.70844974,62988.0,62987.0,3.89253688]
[1721028181011,39.70844974,62988.0,62987.0,3.87853688]
[1721028181413,39.70844974,62988.0,62987.0,3.89253688]
[1721028181934,39.70844974,62988.0,62987.0,5.04126026]
[1721028182313,39.70844974,62988.0,62987.0,5.04920895]
[1721028182717,39.70844974,62988.0,62987.0,5.47806895]
[1721028182919,39.55854974,62988.0,62987.0,4.62911857]
[1721028183166,39.55854974,62988.0,62987.0,4.65394299]
[1721028183391,39.55854974,62988.0,62987.0,6.07420751]
[1721028183600,39.55827147,62988.0,62987.0,6.14610063]
[1721028183726,39.55827147,62988.0,62987.0,6.75947863]
[1721028184119,39.55827147,62988.0,62987.0,6.74547863]
[1721028184323,39.55667338,62988.0,62987.0,6.74547863]
[1721028184549,39.55667338,62988.0,62987.0,6.75947863]
[1721028185694,39.55667338,62988.0,62987.0,6.74547863]
[1721028185897,39.55667338,62988.0,62987.0,7.48147863]
[1721028186071,39.55667338,62988.0,62987.0,7.48939714]
[1721028186273,39.55667338,62988.0,62987.0,6.75339714]
[1721028186534,39.55667338,62988.0,62987.0,6.75947863]
[1721028186733,39.55667338,62988.0,62987.0,5.25897701]
[1721028187080,39.55667338,62988.0,62987.0,5.25895744]
[1721028187305,39.55667338,62988.0,62987.0,5.26687595]
[1721028187754,39.55667338,62988.0,62987.0,5.23887595]
[1721028188277,39.55667338,62988.0,62987.0,5.26687595]
[1721028188595,39.55667338,62988.0,62987.0,6.78175852]
[1721028188706,39.55667338,62988.0,62987.0,6.79575852]
[1721028188918,39.55667338,62988.0,62987.0,6.80975852]
[1721028189377,39.55667338,62988.0,62987.0,7.05358462]
[1721028189575,39.55667338,62988.0,62987.0,7.03958462]
[1721028189933,39.55667338,62988.0,62987.0,7.03970088]
[1721028190239,39.55667338,62988.0,62987.0,7.05370088]